Workbook

Sheet fk_stiffer_sh_percent
X1: TAB FOR POLY 2 | AI1: EBD
A2: 8-31-22
A3: The forks are stiffer than the shock.
A4: We cannot increase fork target by 30% and then stiffen stiffen shock 109 x 1.30.
A5: The shock gets too stiff.
A6: We will devise a separate linear percentage scale for the shock | O6: =1/0.075 -> 13.33333333
A7: using ReStackor Energy to find correct percentage for Enduro, XC and MX.
A8: Consider two shock percentage scales with one simply more aggressive.
B9: Forks are 20% stiffer than shock at 4" bump
B10: [10% stiffer for rocks & roots]
B11: [20% stiffer mostly dirt XC] | O11: have 2 linear curve with one more aggressive
B12: [30 - 50% stiffer MX] | R12: linear
R13: =_xlfn.SINGLE(INDEX(LINEST(P$17:P$18,($O$17:$O$18)^{1}),1)) -> 0.075 | AG13: USE THIS ONE
R14: =INDEX(LINEST(P$17:P$18,($O$17:$O$18)^{1}),1,2) -> 0.925 | AG14: poly 2
P15: STIFF | AG15: ips | AH15: poly 2
C16: Actual fork % change SOFT | G16: % inverse | O16: ips | P16: linear | Q16: ips | R16: linear | AG16: 30 | AH16: 65.1
B17: 1 | C17: aver | D17: 1 | N17: aver | O17: 1 | P17: 1 | Q17: 1 | R17: =(R$13*($Q17)^1)+(R$14) -> 1 | S17: inverse | AG17: 40 | AH17: 82.4
B18: 2 | C18: soft | D18: 0.897 | E18: (60.4 / 67.6 = .897) | G18: =1/D18 -> 1.114827202 | N18: stiff | O18: 2 | P18: 1.075 | Q18: 2 | R18: 1.075 | S18: =1/R18 -> 0.9302325581 | AG18: 50 | AH18: 100
B19: 3 | C19: soft+1 | D19: 0.801 | E19: (53.9 / 67.3 = .801) | G19: =1/D19 -> 1.248439451 | N19: stiff+1 | O19: 3 | P19: 1.251 | Q19: 3 | R19: 1.15 | S19: =1/R19 -> 0.8695652174 | AG19: 60 | AH19: 119.7
B20: 4 | C20: soft+2 | D20: 0.733 | E20: (49.3 / 67.3 = .733) | G20: 1.36425648 | N20: stiff+2 | O20: 4 | P20: 1.406 | Q20: 4 | R20: 1.225 | S20: =1/R20 -> 0.8163265306 | AG20: 70 | AH20: 140.2
B21: 5 | C21: soft+3 | D21: 0.666 | E21: (44.8 / 67.3 = .666) | G21: 1.501501502 | N21: stiff+3 | O21: 5 | P21: 1.584 | Q21: 5 | R21: 1.3 | S21: =1/R21 -> 0.7692307692
B22: 6 | C22: soft+4 | D22: 0.606 | E22: (40.8 / 67.3 = .606 | G22: 1.650165017 | N22: stiff+4 | O22: 6 | P22: 1.789 | Q22: 6 | R22: 1.375 | S22: 0.7272727273 | AH22: poly 2
B23: 7 | C23: soft+5 | D23: 0.557 | E23: (37.5 / 67.3 = .557) | G23: 1.795332136 | N23: stiff+5 | O23: 7 | P23: 2.024 | Q23: 7 | R23: 1.45 | S23: 0.6896551724 | AH23: =INDEX(LINEST(AH$16:AH$20,($AG$16:$AG$20)^{1,2}),1) -> 0.006071428571
B24: 8 | C24: soft+6 | D24: 0.513 | E24: (34.5 / 67.3 = .513) | G24: 1.949317739 | N24: stiff+6 | O24: 8 | P24: 2.291 | Q24: 8 | R24: 1.525 | S24: 0.6557377049 | AH24: =INDEX(LINEST(AH$16:AH$20,($AG$16:$AG$20)^{1,2}),2) -> 1.267857143
V25: 0.93 | AH25: =INDEX(LINEST(AH$16:AH$20,($AG$16:$AG$20)^{1,2}),3) -> 21.69428571
C26: Actual fork % change STIFF | G26: % inverse | U26: x | V26: 1.225
B27: 1 | C27: aver | D27: 1 | O27: have 2 linear curve with one more aggressive | V27: =V25*V26 -> 1.13925 | AG27: ips | AH27: poly 2
B28: 2 | C28: stiff | D28: 1.116 | E28: (60.4 / 67.6 = .897) | G28: =1/D28 -> 0.8960573477 | R28: linear | AG28: 30 | AH28: =(AH$23*($AG28)^2)+(AH$24*($AG28)^1)+(AH$25) -> 65.19428571
B29: 3 | C29: stiff+1 | D29: 1.251 | E29: (53.9 / 67.3 = .801) | G29: =1/D29 -> 0.7993605116 | R29: =_xlfn.SINGLE(INDEX(LINEST(P$33:P$34,($O$33:$O$34)^{1}),1)) -> 0.0375 | AG29: 40 | AH29: =(AH$23*($AG29)^2)+(AH$24*($AG29)^1)+(AH$25) -> 82.12285714
B30: 4 | C30: stiff+2 | D30: 1.406 | E30: (49.3 / 67.3 = .733) | G30: 0.7112375533 | R30: =INDEX(LINEST(P$33:P$34,($O$33:$O$34)^{1}),1,2) -> 0.9625 | AG30: 50 | AH30: =(AH$23*($AG30)^2)+(AH$24*($AG30)^1)+(AH$25) -> 100.2657143
B31: 5 | C31: stiff+3 | D31: 1.584 | E31: (44.8 / 67.3 = .666) | G31: 0.6313131313 | P31: STIFF | AG31: 60 | AH31: =(AH$23*($AG31)^2)+(AH$24*($AG31)^1)+(AH$25) -> 119.6228571
B32: 6 | C32: stiff+4 | D32: 1.789 | E32: (40.8 / 67.3 = .606 | G32: 0.5589714925 | O32: ips | P32: linear | Q32: ips | R32: linear | S32: 1 | AG32: 70 | AH32: =(AH$23*($AG32)^2)+(AH$24*($AG32)^1)+(AH$25) -> 140.1942857
B33: 7 | C33: stiff+5 | D33: 2.024 | E33: (37.5 / 67.3 = .557) | G33: 0.4940711462 | N33: aver | O33: 1 | P33: 1 | Q33: 1 | R33: =(R$29*($Q33)^1)+(R$30) -> 1 | S33: =R33*S$32 -> 1
B34: 8 | C34: stiff+6 | D34: 2.294 | E34: (34.5 / 67.3 = .513) | G34: 0.4359197908 | N34: stiff | O34: 2 | P34: 1.0375 | Q34: 2 | R34: =(R$29*($Q34)^1)+(R$30) -> 1.0375 | S34: =R34*S$32 -> 1.0375
N35: stiff+1 | O35: 3 | P35: 1.251 | Q35: 3 | R35: 1.075 | S35: 1.075
N36: stiff+2 | O36: 4 | P36: 1.406 | Q36: 4 | R36: 1.1125 | S36: 1.1125
N37: stiff+3 | O37: 5 | P37: 1.584 | Q37: 5 | R37: 1.15 | S37: 1.15
C38: 0 | D38: 126 | N38: stiff+4 | O38: 6 | P38: 1.789 | Q38: 6 | R38: 1.1875 | S38: 1.1875
C39: 3 | D39: 129 | N39: stiff+5 | O39: 7 | P39: 2.024 | Q39: 7 | R39: 1.225 | S39: 1.225
C40: 5 | D40: 145 | N40: stiff+6 | O40: 8 | P40: 2.291 | Q40: 8 | R40: 1.2625 | S40: 1.2625
O43: have 2 linear curve with one more aggressive
R44: linear
R45: =_xlfn.SINGLE(INDEX(LINEST(P$49:P$50,($O$49:$O$50)^{1}),1)) -> 0.01875
R46: =INDEX(LINEST(P$49:P$50,($O$49:$O$50)^{1}),1,2) -> 0.98125 | W46: =630*1.05 -> 661.5
P47: STIFF
O48: ips | P48: linear | Q48: ips | R48: linear | S48: 1
N49: aver | O49: 1 | P49: 1 | Q49: 1 | R49: =(R$45*($Q49)^1)+(R$46) -> 1 | S49: =R49*S$48 -> 1
N50: stiff | O50: 2 | P50: 1.01875 | Q50: 2 | R50: =(R$45*($Q50)^1)+(R$46) -> 1.01875 | S50: =R50*S$48 -> 1.01875
N51: stiff+1 | O51: 3 | P51: 1.251 | Q51: 3 | R51: 1.0375 | S51: 1.0375
N52: stiff+2 | O52: 4 | P52: 1.406 | Q52: 4 | R52: 1.05625 | S52: 1.05625
N53: stiff+3 | O53: 5 | P53: 1.584 | Q53: 5 | R53: 1.075 | S53: 1.075
N54: stiff+4 | O54: 6 | P54: 1.789 | Q54: 6 | R54: 1.09375 | S54: 1.09375
N55: stiff+5 | O55: 7 | P55: 2.024 | Q55: 7 | R55: 1.1125 | S55: 1.1125
N56: stiff+6 | O56: 8 | P56: 2.291 | Q56: 8 | R56: 1.13125 | S56: 1.13125

Sheet results_targ_03_USE
L1: 8-31-22 | N1: vdb / excel / sh_fk_ratio_interpolate.xlsm
F2: 2349s | H2: CO WOGAS | I2: CO WOGAS | L2: Use this to verify calculations are correct. | T2: 3791f | U2: CO WOGAS | V2: CO WOGAS
B3: SHOCK | C3: 2349s | F3: temp | H3: stash | I3: stash | P3: FORK | Q3: CO WOGAS | T3: temp | U3: stash | V3: stash
C4: CO WOGAS | D4: % | F4: copy | H4: 2349s | I4: 109 x 1.0 | Q4: 3791f | R4: drag | S4: % | T4: copy | U4: 3791f | V4: 3791f
B5: ips | C5: [actual] | D5: 1 | F5: [actual] | H5: [actual] | I5: TARGET | P5: ips | Q5: TARGET | R5: 0 | S5: 1 | T5: [actual] | U5: [actual] | V5: TARGET
B6: 1 | C6: 38.6 | F6: 38.6 | H6: 38.6 | I6: 40.1 | P6: 1 | Q6: 10.36 | R6: =(Q6+R$5) -> 10.36 | T6: 10.36 | U6: 10.36 | V6: 10.3
B7: 2 | C7: 78.2 | F7: 78.2 | H7: 78.2 | I7: 73.2 | P7: 2 | Q7: 11.39 | R7: =(Q7+R$5) -> 11.39 | T7: 11.39 | U7: 11.39 | V7: 11.4
B8: 3 | C8: 100.9 | F8: 100.9 | H8: 100.9 | I8: 97.2 | P8: 3 | Q8: 12.68 | R8: 12.68 | T8: 12.68 | U8: 12.68 | V8: 12.7
B9: 4 | C9: 121.4 | F9: 121.4 | H9: 121.4 | I9: 117.4 | P9: 4 | Q9: 13.97 | R9: 13.97 | T9: 13.97 | U9: 13.97 | V9: 13.9
B10: 5 | C10: 138.9 | F10: 138.9 | H10: 138.9 | I10: 137.8 | P10: 5 | Q10: 14.59 | R10: 14.59 | T10: 14.59 | U10: 14.59 | V10: 14.8
B11: 10 | C11: 216.7 | F11: 216.7 | H11: 216.7 | I11: 221.5 | P11: 10 | Q11: 16.83 | R11: 16.83 | T11: 16.83 | U11: 16.83 | V11: 18
B12: 20 | C12: 360.5 | F12: 360.5 | H12: 360.5 | I12: 371.9 | P12: 20 | Q12: 20.51 | R12: 20.51 | T12: 20.51 | U12: 20.51 | V12: 23
B13: 30 | C13: 483.5 | F13: 483.5 | H13: 483.5 | I13: 495.1 | P13: 30 | Q13: 24.3 | R13: 24.3 | T13: 24.3 | U13: 24.3 | V13: 27.1
B14: 40 | C14: 596.9 | F14: 596.9 | H14: 596.9 | I14: 606.3 | P14: 40 | Q14: 28.36 | R14: =(Q14+R$5) -> 28.36 | T14: 28.36 | U14: 28.36 | V14: 31.3
B15: 50 | C15: 701.1 | F15: 701.1 | H15: 701.1 | I15: 714.6 | P15: 50 | Q15: 32.45 | R15: 32.45 | T15: 32.45 | U15: 32.45 | V15: 36.3
P16: 60 | Q16: 36.68 | R16: =(Q16+R$5) -> 36.68 | T16: 36.68 | U16: 36.68 | V16: 41.9
B17: dyno wheel velocity and dyno force at the wheel | P17: 70 | Q17: 41.4 | R17: =(Q17+R$5) -> 41.4 | T17: 41.4 | U17: 41.4 | V17: 46.7
H18: this matches/aligns everything by sh LR 2.52 and fk LR 1.11 | P18: 80 | Q18: 45.92 | R18: =(Q18+R$5) -> 45.92 | T18: 45.92 | U18: 45.92 | V18: 52.1
B19: ips x LR | C19: cowogas x LR | E19: ips / LR | F19: cowogas x 2 x LR | H19: HOWEVER, we decided not to use fork numbers at the shaft [i.e. LR = 1.0] | P19: 90 | Q19: 50.91 | R19: =(Q19+R$5) -> 50.91 | T19: 50.91 | U19: 50.91 | V19: 58.1
B20: Shock | D20: LR | E20: Fork | H20: u.whl | I20: F.shk | J20: F.fk | P20: 100 | Q20: 55.37 | R20: =(Q20+R$5) -> 55.37 | T20: 55.37 | U20: 55.37 | V20: 63
B21: u.whl | C21: F.wheel | D21: 2.52 | E21: u.whl | F21: F.wheel | G21: F.bush | I21: [extrapolote sh] | J21: [extropalate fk] | K21: [fk/sh ratio] | P21: 110 | Q21: =T33 -> 60.18333333
A22: 1 | B22: =B6*D$21 -> 2.52 | C22: =C6/D$21 -> 15.31746032 | E22: =P6/G$24 -> 1 | F22: =(2*Q6*G$24)+G$22 -> 20.72 | G22: 0 | H22: 1 | I22: =intrp(H22,$B$22:$B$31,$C$22:$C$31) ->  | J22: =intrp(H22,$E$22:$E$38,$F$22:$F$38) -> 20.72 | K22: =I22/J22 ->  | P22: 120 | Q22: =T34 -> 64.90833333
A23: 2 | B23: =B7*D$21 -> 5.04 | C23: =C7/D$21 -> 31.03174603 | E23: =P7/G$24 -> 2 | F23: =(2*Q7*G$24)+G$22 -> 22.78 | G23: LR [1.114] | H23: 2 | I23: =intrp(H23,$B$22:$B$31,$C$22:$C$31) ->  | J23: =intrp(H23,$E$22:$E$38,$F$22:$F$38) -> 22.78 | K23: =I23/J23 -> 
A24: 3 | B24: =B8*D$21 -> 7.56 | C24: =C8/D$21 -> 40.03968254 | E24: =P8/G$24 -> 3 | F24: 25.36 | G24: 1 | H24: 3 | I24: =intrp(H24,$B$22:$B$31,$C$22:$C$31) -> 18.3106576 | J24: =intrp(H24,$E$22:$E$38,$F$22:$F$38) -> 25.36 | K24: 0.722029085 | M24: F.shk = dyno numbers converted to fwhl
A25: 4 | B25: =B9*D$21 -> 10.08 | C25: =C9/D$21 -> 48.17460317 | E25: =P9/G$24 -> 4 | F25: 27.94 | H25: 4 | I25: =intrp(H25,$B$22:$B$31,$C$22:$C$31) -> 24.54648526 | J25: =intrp(H25,$E$22:$E$38,$F$22:$F$38) -> 27.94 | K25: 0.8785427796 | M25: F.fk = dyno numbers converted to fwhl | Q25: Use linear trend line to get fork | T25: linear
A26: 5 | B26: =B10*D$21 -> 12.6 | C26: =C10/D$21 -> 55.11904762 | E26: =P10/G$24 -> 5 | F26: 29.18 | G26: =F26/2 -> 14.59 | H26: 5 | I26: =intrp(H26,$B$22:$B$31,$C$22:$C$31) -> 30.78231293 | J26: =intrp(H26,$E$22:$E$38,$F$22:$F$38) -> 29.18 | K26: 1.054911341 | M26: now they are compareable not including air spr | Q26: co wogas at 110ips to prevent | T26: =_xlfn.SINGLE(INDEX(LINEST(R$30:R$32,($Q$30:$Q$32)^{1}),1)) -> 0.4725
A27: 10 | B27: =B11*D$21 -> 25.2 | C27: =C11/D$21 -> 85.99206349 | E27: =P11/G$24 -> 10 | F27: 33.66 | G27: =F27/2 -> 16.83 | H27: 10 | I27: =intrp(H27,$B$22:$B$31,$C$22:$C$31) -> 47.91635173 | J27: =intrp(H27,$E$22:$E$38,$F$22:$F$38) -> 33.66 | K27: 1.423539861 | Q27: error at J36 | T27: =INDEX(LINEST(R$30:R$32,($Q$30:$Q$32)^{1}),1,2) -> 8.208333333
A28: 20 | B28: =B12*D$21 -> 50.4 | C28: =C12/D$21 -> 143.0555556 | E28: =P12/G$24 -> 20 | F28: 41.02 | G28: 20.51 | H28: 20 | I28: =intrp(H28,$B$22:$B$31,$C$22:$C$31) -> 73.25081885 | J28: =intrp(H28,$E$22:$E$38,$F$22:$F$38) -> 41.02 | K28: 1.785734248 | M28: Save for comparison | R28: co wogas
A29: 30 | B29: =B13*D$21 -> 75.6 | C29: =C13/D$21 -> 191.8650794 | E29: =P13/G$24 -> 30 | F29: 48.6 | G29: 24.3 | H29: 30 | I29: =intrp(H29,$B$22:$B$31,$C$22:$C$31) -> 96.86130008 | J29: =intrp(H29,$E$22:$E$38,$F$22:$F$38) -> 48.6 | K29: 1.993030866 | M29: sh manual interpolate formula for 40ips | Q29: ips | R29: linear | S29: ips | T29: linear
A30: 40 | B30: =B14*D$21 -> 100.8 | C30: =C14/D$21 -> 236.8650794 | E30: =P14/G$24 -> 40 | F30: 56.72 | G30: 28.36 | H30: 40 | I30: =intrp(H30,$B$22:$B$31,$C$22:$C$31) -> 119.505543 | J30: =intrp(H30,$E$22:$E$38,$F$22:$F$38) -> 56.72 | K30: 2.106938346 | M30: =C27+(C28-C27)/(B28-B27)*(H30-B27) -> 119.505543 | Q30: =P18 -> 80 | R30: =Q18 -> 45.92 | S30: =P18 -> 80 | T30: =(T$26*($S30)^1)+(T$27) -> 46.00833333
A31: 50 | B31: =B15*D$21 -> 126 | C31: =C15/D$21 -> 278.2142857 | E31: =P15/G$24 -> 50 | F31: 64.9 | G31: 32.45 | H31: 50 | I31: =intrp(H31,$B$22:$B$31,$C$22:$C$31) -> 142.1497858 | J31: =intrp(H31,$E$22:$E$38,$F$22:$F$38) -> 64.9 | K31: 2.190289458 | Q31: =P19 -> 90 | R31: =Q19 -> 50.91 | S31: =P19 -> 90 | T31: =(T$26*($S31)^1)+(T$27) -> 50.73333333
A32: 60 | E32: =P16/G$24 -> 60 | F32: 73.36 | G32: 36.68 | H32: 60 | I32: =intrp(H32,$B$22:$B$31,$C$22:$C$31) -> 161.6496599 | J32: =intrp(H32,$E$22:$E$38,$F$22:$F$38) -> 73.36 | K32: 2.203512266 | M32: 1 / 1.4 = .71 | N32: IF forks 1.4 stiffer | Q32: 100 | R32: 55.37 | S32: 100 | T32: 55.45833333
A33: 70 | B33: We need 30 & 40ips to match | E33: =P17/G$24 -> 70 | F33: 82.8 | G33: 41.4 | H33: 70 | I33: =intrp(H33,$B$22:$B$31,$C$22:$C$31) -> 181.0185185 | J33: =intrp(H33,$E$22:$E$38,$F$22:$F$38) -> 82.8 | K33: 2.186213992 | M33: =1/1.4 -> 0.7142857143 | S33: 110 | T33: 60.18333333
A34: 80 | B34: fork velocity of 100ips | E34: =P18/G$24 -> 80 | F34: 91.84 | G34: 45.92 | H34: 80 | I34: =intrp(H34,$B$22:$B$31,$C$22:$C$31) -> 199.7222222 | J34: =intrp(H34,$E$22:$E$38,$F$22:$F$38) -> 91.84 | K34: 2.174675765 | S34: 120 | T34: 64.90833333
A35: 90 | E35: =P19/G$24 -> 90 | F35: 101.82 | G35: 50.91 | H35: 90 | I35: =intrp(H35,$B$22:$B$31,$C$22:$C$31) -> 217.5793651 | J35: =intrp(H35,$E$22:$E$38,$F$22:$F$38) -> 101.82 | K35: 2.136902034 | M35: sh manual interpolate formula for 100ips
A36: 100 | E36: =(P20/G$24) -> 100 | F36: 110.74 | G36: 55.37 | H36: 100 | I36: =intrp(H36,$B$22:$B$31,$C$22:$C$31) -> 235.4365079 | J36: =intrp(H36,$E$22:$E$38,$F$22:$F$38) -> 110.74 | K36: =I36/J36 -> 2.12602951 | M36: =C29+(C30-C29)/(B30-B29)*(H36-B29) -> 235.4365079
B37: 2.52 LR just happens to match | E37: =(P21/G$24)+0.01 -> 110.01 | F37: 120.3666667 | G37: 60.18333333
B38: fork 100ips at shock 40ips | E38: =(P22/G$24)+0.01 -> 120.01 | F38: =(2*Q22*G$24)+G$22 -> 129.8166667 | G38: =F38/2 -> 64.90833333
H39: As per openDynoSh_press_a_target.php line 1950,
H40: we can't just compare dyno numbers, we have to
H41: add fixed gas force numbers for total fk air spr force
H42: and shock spr + gas force.
H44: 100 | I44: =intrp(H44,$B$22:$B$31,$C$22:$C$31) -> 235.4365079 | J44: =intrp(H44,$E$22:$E$38,$F$22:$F$38) -> 110.74
I45: 120.25 | J45: 327 | L45: <-- shock spring + gas force AND fork total air spring force [spring + air spr + icspr]
H46: 100 | I46: =SUM(I44:I45) -> 355.6865079 | J46: =SUM(J44:J45) -> 437.74 | K46: =J46/I46 -> 1.230690482 | L46: <-- fk/sh ratio that matches VDB
M51: = C27 + ( C28 - C27 ) / (B28-B27) * (H34-B27)
E52: we used this with target sh/fk ratio | M52: 194.9 | N52: 239.8 | O52: 194.9 | P52: 100.8 | Q52: 100
E53: aver | F53: 1 | H53: 0.9 | I53: factor | P53: 75.6 | Q53: 75.6
E54: soft | F54: 0.897 | G54: =1/F54 -> 1.114827202 | H54: =G54*H$53 -> 1.003344482 | M54: $fwhl_LR_30 | N54: $fwhl_LR_40 | O54: $fwhl_LR_30 | P54: $uwhl_LR_40 | Q54: 100
E55: stiff+1 | F55: 0.801 | G55: =1/F55 -> 1.248439451 | H55: =G55*H$53 -> 1.123595506 | P55: $uwhl_LR_30 | Q55: $uwhl_LR_30
E56: stiff+2 | F56: 0.733 | G56: 1.36425648 | H56: =G56*H$53 -> 1.227830832
E57: stiff+3 | F57: 0.666 | G57: 1.501501502 | H57: =G57*H$53 -> 1.351351351 | M57: = $fwhl_LR_30 + ( $fwhl_LR_40 - $fwhl_LR_30 ) / ($uwhl_LR_40 - $uwhl_LR_30) * (100 - $uwhl_LR_30)
E58: stiff+4 | F58: 0.606 | G58: 1.650165017 | H58: =G58*H$53 -> 1.485148515
E59: stiff+5 | F59: 0.557 | G59: 1.795332136 | H59: =G59*H$53 -> 1.615798923
E60: stiff+6 | F60: 0.526 | G60: 1.901140684 | H60: =G60*H$53 -> 1.711026616
H64: 0.9 | I64: factor
G65: 1.116 | H65: =G65*H$64 -> 1.0044
G66: 1.251 | H66: =G66*H$64 -> 1.1259
G67: 1.406 | H67: =G67*H$64 -> 1.2654
G68: 1.584 | H68: =G68*H$64 -> 1.4256
G69: 1.789 | H69: =G69*H$64 -> 1.6101
G70: 2.024 | H70: =G70*H$64 -> 1.8216
G71: 2.294 | H71: =G71*H$64 -> 2.0646

Sheet results_targ_03_USE (2)
L1: 8-31-22 | N1: vdb / excel / sh_fk_ratio_interpolate.xlsm
F2: 2349s | L2: Use this to verify calculations are correct. | T2: 3791f
B3: SHOCK | F3: COPY NUMBERS | I3: CO WOGAS | P3: FORK | Q3: CO WOGAS | T3: COPY NUMBERS | V3: CO WOGAS
C4: CO WOGAS | D4: % | F4: HERE | H4: 109 x 1.0 | I4: 2349s | Q4: 3791f | R4: drag | S4: % | T4: HERE | U4: 3791f | V4: 3791f
B5: ips | C5: [actual] | D5: 1 | F5: [actual] | H5: [actual] | I5: TARGET | P5: ips | Q5: TARGET | R5: 0 | S5: 1 | T5: [actual] | U5: [actual] | V5: TARGET
B6: 1 | C6: 40.1 | F6: 111.1 | H6: 40.6 | I6: 40.1 | P6: 1 | Q6: 10.3 | R6: =(Q6+R$5) -> 10.3 | T6: 13.9 | U6: 10.36 | V6: 10.3
B7: 2 | C7: 73.2 | F7: 144.2 | H7: 80.2 | I7: 73.2 | P7: 2 | Q7: 11.4 | R7: =(Q7+R$5) -> 11.4 | T7: 15 | U7: 11.39 | V7: 11.4
B8: 3 | C8: 97.2 | F8: 168.2 | H8: 102.9 | I8: 97.2 | P8: 3 | Q8: 12.7 | R8: 12.7 | T8: 16.2 | U8: 12.68 | V8: 12.7
B9: 4 | C9: 117.4 | F9: 188.4 | H9: 123.4 | I9: 117.4 | P9: 4 | Q9: 13.9 | R9: 13.9 | T9: 17.4 | U9: 13.97 | V9: 13.9
B10: 5 | C10: 137.8 | F10: 208.8 | H10: 140.9 | I10: 137.8 | P10: 5 | Q10: 14.8 | R10: 14.8 | T10: 18.3 | U10: 14.59 | V10: 14.8
B11: 10 | C11: 221.5 | F11: 292.5 | H11: 218.7 | I11: 221.5 | P11: 10 | Q11: 18 | R11: 18 | T11: 21.4 | U11: 16.83 | V11: 18
B12: 20 | C12: 371.9 | F12: 442.9 | H12: 362.5 | I12: 371.9 | P12: 20 | Q12: 23 | R12: 23 | T12: 26.4 | U12: 20.51 | V12: 23
B13: 30 | C13: 495.1 | F13: 566.1 | G13: 566.1 | H13: 485.5 | I13: 495.1 | P13: 30 | Q13: 27.1 | R13: 27.1 | T13: 30.5 | U13: 24.3 | V13: 27.1
B14: 40 | C14: 606.3 | F14: 677.3 | G14: 677.3 | H14: 598.9 | I14: 606.3 | P14: 40 | Q14: 31.3 | R14: 31.3 | T14: 34.6 | U14: 28.36 | V14: 31.3
B15: 50 | C15: 714.6 | F15: 785.6 | H15: 703.1 | I15: 714.6 | P15: 50 | Q15: 36.3 | R15: 36.3 | T15: 39.7 | U15: 32.45 | V15: 36.3
P16: 60 | Q16: 41.9 | R16: 41.9 | T16: 45.4 | U16: 36.68 | V16: 41.9
B17: dyno wheel velocity and dyno force at the wheel | P17: 70 | Q17: 46.7 | R17: 46.7 | T17: 50.3 | U17: 41.4 | V17: 46.7
B18: Shock | D18: LR | E18: Fork | P18: 80 | Q18: 52.1 | R18: 52.1 | T18: 55.9 | U18: 45.92 | V18: 52.1
B19: u.whl | C19: F.wheel | D19: 2.52 | E19: u.whl | F19: F.wheel | G19: F.bush | H19: u.whl | I19: F.shk | J19: F.fk | P19: 90 | Q19: 58.1 | R19: 58.1 | T19: 62.1 | U19: 50.91 | V19: 58.1
A20: 1 | B20: =B6*D$19 -> 2.52 | C20: =C6/D$19 -> 15.91269841 | E20: =P6/G$22 -> 0.8976660682 | F20: =2*Q6*G$22+G$20 -> 22.9484 | G20: 0 | H20: 1 | I20: =intrp(H20,$B$20:$B$29,$C$20:$C$29) ->  | J20: =intrp(H20,$E$20:$E$34,$F$20:$F$34) -> 23.2277912 | K20: =I20/J20 ->  | P20: 100 | Q20: 63 | R20: 63 | T20: 67.3 | U20: 55.37 | V20: 63
A21: 2 | B21: =B7*D$19 -> 5.04 | C21: 29.04761905 | E21: =P7/G$22 -> 1.795332136 | F21: =2*Q7*G$22+G$20 -> 25.3992 | G21: LR [1.11] | H21: 2 | I21: =intrp(H21,$B$20:$B$29,$C$20:$C$29) ->  | J21: =intrp(H21,$E$20:$E$34,$F$20:$F$34) -> 26.0595792 | K21: =I21/J21 ->  | P21: 111 | Q21: =T31 -> 69.17833333
A22: 3 | B22: 7.56 | C22: 38.57142857 | E22: =P8/G$22 -> 2.692998205 | F22: =2*Q8*G$22+G$20 -> 28.2956 | G22: 1.114 | H22: 3 | I22: =intrp(H22,$B$20:$B$29,$C$20:$C$29) -> 18.41458806 | J22: =intrp(H22,$E$20:$E$34,$F$20:$F$34) -> 29.2099712 | K22: 0.6304213014 | M22: F.shk = dyno numbers converted to fwhl
A23: 4 | B23: 10.08 | C23: 46.58730159 | E23: 3.590664273 | F23: =2*Q9*G$22+G$20 -> 30.9692 | H23: 4 | I23: =intrp(H23,$B$20:$B$29,$C$20:$C$29) -> 23.62685815 | J23: =intrp(H23,$E$20:$E$34,$F$20:$F$34) -> 31.8835712 | K23: 0.7410355008 | M23: F.fk = dyno numbers converted to fwhl | T23: linear
A24: 5 | B24: 12.6 | C24: 54.68253968 | E24: 4.488330341 | F24: 32.9744 | G24: =F24/2 -> 16.4872 | H24: 5 | I24: =intrp(H24,$B$20:$B$29,$C$20:$C$29) -> 28.83912824 | J24: =intrp(H24,$E$20:$E$34,$F$20:$F$34) -> 33.7871744 | K24: 0.8535525316 | M24: now they are compareable not including air spr | T24: =_xlfn.SINGLE(INDEX(LINEST(R$28:R$30,($Q$28:$Q$30)^{1}),1)) -> 0.545
A25: 10 | B25: 25.2 | C25: 87.8968254 | E25: 8.976660682 | F25: 40.104 | G25: =F25/2 -> 20.052 | H25: 10 | I25: =intrp(H25,$B$20:$B$29,$C$20:$C$29) -> 46.33282943 | J25: =intrp(H25,$E$20:$E$34,$F$20:$F$34) -> 41.37396 | K25: 1.119854842 | T25: =INDEX(LINEST(R$28:R$30,($Q$28:$Q$30)^{1}),1,2) -> 8.683333333
A26: 20 | B26: 50.4 | C26: =C12/D$19 -> 147.5793651 | E26: 17.95332136 | F26: 51.244 | G26: 25.622 | H26: 20 | I26: =intrp(H26,$B$20:$B$29,$C$20:$C$29) -> 74.1893424 | J26: =intrp(H26,$E$20:$E$34,$F$20:$F$34) -> 53.3267344 | K26: 1.391222306 | M26: SAVE !! | R26: STIFF
A27: 30 | B27: 75.6 | C27: =C13/D$19 -> 196.468254 | E27: =P13/G$22 -> 26.92998205 | F27: 60.3788 | G27: 30.1894 | H27: 30 | I27: =intrp(H27,$B$20:$B$29,$C$20:$C$29) -> 99.26492819 | J27: =intrp(H27,$E$20:$E$34,$F$20:$F$34) -> 63.5790992 | K27: 1.561282394 | M27: manual interpolate formula | Q27: ips | R27: linear | S27: ips | T27: linear
A28: 40 | B28: 100.8 | C28: =C14/D$19 -> 240.5952381 | E28: =P14/G$22 -> 35.90664273 | F28: 69.7364 | G28: 34.8682 | H28: 40 | I28: =intrp(H28,$B$20:$B$29,$C$20:$C$29) -> 122.9484757 | J28: =intrp(H28,$E$20:$E$34,$F$20:$F$34) -> 74.81624 | K28: 1.64333941 | M28: =C25+(C26-C25)/(B26-B25)*(H28-B25) -> 122.9484757 | Q28: 80 | R28: =Q18 -> 52.1 | S28: 80 | T28: =(T$24*($S28)^1)+(T$25) -> 52.28333333
A29: 50 | B29: 126 | C29: =C15/D$19 -> 283.5714286 | E29: 44.88330341 | F29: 80.8764 | G29: 40.4382 | H29: 50 | I29: =intrp(H29,$B$20:$B$29,$C$20:$C$29) -> 146.6320232 | J29: =intrp(H29,$E$20:$E$34,$F$20:$F$34) -> 87.988176 | K29: 1.666496907 | Q29: 90 | R29: =Q19 -> 58.1 | S29: 90 | T29: =(T$24*($S29)^1)+(T$25) -> 57.73333333
A30: 60 | E30: 53.85996409 | F30: 93.3532 | G30: 46.6766 | H30: 60 | I30: =intrp(H30,$B$20:$B$29,$C$20:$C$29) -> 166.2037037 | J30: =intrp(H30,$E$20:$E$34,$F$20:$F$34) -> 100.6681696 | K30: 1.65100552 | M30: 1 / 1.4 = .71 | N30: IF forks 1.4 stiffer | Q30: 100 | R30: 63 | S30: 100 | T30: =(T$24*($S30)^1)+(T$25) -> 63.18333333
A31: 70 | E31: 62.83662478 | F31: 104.0476 | G31: 52.0238 | H31: 70 | I31: =intrp(H31,$B$20:$B$29,$C$20:$C$29) -> 185.6040564 | J31: =intrp(H31,$E$20:$E$34,$F$20:$F$34) -> 113.6484976 | K31: 1.633141312 | M31: =1/1.4 -> 0.7142857143 | S31: 111 | T31: =(T$24*($S31)^1)+(T$25) -> 69.17833333
A32: 80 | E32: 71.81328546 | F32: 116.0788 | G32: 58.0394 | H32: 80 | I32: =intrp(H32,$B$20:$B$29,$C$20:$C$29) -> 204.1729655 | J32: =intrp(H32,$E$20:$E$34,$F$20:$F$34) -> 128.270416 | K32: 1.591738546
A33: 90 | E33: =P19/G$22 -> 80.78994614 | F33: =2*Q19*G$22+G$20 -> 129.4468 | G33: 64.7234 | H33: 90 | I33: =intrp(H33,$B$20:$B$29,$C$20:$C$29) -> 221.6836735 | J33: =intrp(H33,$E$20:$E$34,$F$20:$F$34) ->  | M33: manual interpolate formula
A34: 100 | E34: =(P20/G$22) -> 89.76660682 | F34: =2*Q20*G$22+G$20 -> 140.364 | G34: 70.182 | H34: 100 | I34: =intrp(H34,$B$20:$B$29,$C$20:$C$29) -> 239.1943815 | J34: =intrp(H34,$E$20:$E$35,$F$20:$F$35) ->  | M34: =C27+(C28-C27)/(B28-B27)*(H34-B27) -> 239.1943815
E35: =(P21/G$22)+0.01 -> 99.65093357 | F35: =2*Q21*G$22+G$20 -> 154.1293267 | G35: 77.06466333
M37: = C27 + ( C28 - C27 ) / (B28-B27) * (H34-B27)
M38: 194.9 | N38: 239.8 | O38: 194.9 | P38: 100.8 | Q38: 100
E39: we used this with target sh/fk ratio | P39: 75.6 | Q39: 75.6
E40: aver | F40: 1 | H40: 0.9 | I40: factor | M40: $fwhl_LR_30 | N40: $fwhl_LR_40 | O40: $fwhl_LR_30 | P40: $uwhl_LR_40 | Q40: 100
E41: soft | F41: 0.897 | G41: =1/F41 -> 1.114827202 | H41: =G41*H$40 -> 1.003344482 | P41: $uwhl_LR_30 | Q41: $uwhl_LR_30
E42: stiff+1 | F42: 0.801 | G42: =1/F42 -> 1.248439451 | H42: 1.123595506
E43: stiff+2 | F43: 0.733 | G43: 1.36425648 | H43: 1.227830832 | M43: = $fwhl_LR_30 + ( $fwhl_LR_40 - $fwhl_LR_30 ) / ($uwhl_LR_40 - $uwhl_LR_30) * (100 - $uwhl_LR_30)
E44: stiff+3 | F44: 0.666 | G44: 1.501501502 | H44: 1.351351351
E45: stiff+4 | F45: 0.606 | G45: 1.650165017 | H45: 1.485148515
E46: stiff+5 | F46: 0.557 | G46: 1.795332136 | H46: 1.615798923
E47: stiff+6 | F47: 0.526 | G47: 1.901140684 | H47: 1.711026616
H51: 0.9 | I51: factor
G52: 1.116 | H52: =G52*H$51 -> 1.0044
G53: 1.251 | H53: =G53*H$51 -> 1.1259
G54: 1.406 | H54: 1.2654
G55: 1.584 | H55: 1.4256
G56: 1.789 | H56: 1.6101
G57: 2.024 | H57: 1.8216
G58: 2.294 | H58: 2.0646

Sheet results_targ_03_proposed
B1: Make changes here to match openDynoFk__Shpress_target.php | L1: 8-31-22 | N1: vdb / excel / sh_fk_ratio_interpolate.xlsm
B2: Looks like we started this but stopped. | F2: 2349s | L2: Use this to verify calculations are correct. | T2: 3791f
B3: SHOCK | F3: COPY NUMBERS | I3: CO WOGAS | P3: FORK | Q3: CO WOGAS | T3: COPY NUMBERS | V3: CO WOGAS
C4: CO WOGAS | D4: % | F4: HERE | H4: 109 x 1.0 | I4: 2349s | K4: Shock lev ratio | N4: Fork lev ratio | Q4: 3791f | R4: drag | S4: % | T4: HERE | U4: 3791f | V4: 3791f
B5: ips | C5: [actual] | D5: 1 | F5: [actual] | H5: [actual] | I5: TARGET | K5: wheel | L5: 300 | N5: wheel | O5: 278.4 | P5: ips | Q5: TARGET | R5: 0 | S5: 1 | T5: [actual] | U5: [actual] | V5: TARGET
B6: 1 | C6: 40.1 | F6: 111.1 | H6: 40.6 | I6: 40.1 | K6: shaft | L6: 135 | N6: shaft | O6: 310 | P6: 1 | Q6: 10.3 | R6: =(Q6+R$5) -> 10.3 | T6: 13.9 | U6: 10.36 | V6: 10.3
B7: 2 | C7: 73.2 | F7: 144.2 | H7: 80.2 | I7: 73.2 | K7: LR = wh/shaft | L7: =L5/L6 -> 2.222222222 | N7: LR = wh/shaft | O7: =O5/O6 -> 0.8980645161 | P7: 2 | Q7: 11.4 | R7: =(Q7+R$5) -> 11.4 | T7: 15 | U7: 11.39 | V7: 11.4
B8: 3 | C8: 97.2 | F8: 168.2 | H8: 102.9 | I8: 97.2 | P8: 3 | Q8: 12.7 | R8: 12.7 | T8: 16.2 | U8: 12.68 | V8: 12.7
B9: 4 | C9: 117.4 | F9: 188.4 | H9: 123.4 | I9: 117.4 | K9: SHOCK (shaft moves less than the wheel) | P9: 4 | Q9: 13.9 | R9: 13.9 | T9: 17.4 | U9: 13.97 | V9: 13.9
B10: 5 | C10: 137.8 | F10: 208.8 | H10: 140.9 | I10: 137.8 | P10: 5 | Q10: 14.8 | R10: 14.8 | T10: 18.3 | U10: 14.59 | V10: 14.8
B11: 10 | C11: 221.5 | F11: 292.5 | H11: 218.7 | I11: 221.5 | M11: FORK (shaft moves more than wheel) | P11: 10 | Q11: 18 | R11: 18 | T11: 21.4 | U11: 16.83 | V11: 18
B12: 20 | C12: 371.9 | F12: 442.9 | H12: 362.5 | I12: 371.9 | M12: shaft | N12: LR | O12: wheel | P12: 20 | Q12: 23 | R12: 23 | T12: 26.4 | U12: 20.51 | V12: 23
B13: 30 | C13: 495.1 | D13: =495.1/2.52 -> 196.468254 | F13: 566.1 | G13: 566.1 | H13: 485.5 | I13: 495.1 | M13: 310 | N13: 0.898 | O13: =M13*N13 -> 278.38 | P13: 30 | Q13: 27.1 | R13: 27.1 | T13: 30.5 | U13: 24.3 | V13: 27.1
B14: 40 | C14: 606.3 | D14: =606.3/2.52 -> 240.5952381 | F14: 677.3 | G14: 677.3 | H14: 598.9 | I14: 606.3 | M14: 300 | N14: 0.898 | O14: =M14*N14 -> 269.4 | P14: 40 | Q14: 31.3 | R14: 31.3 | T14: 34.6 | U14: 28.36 | V14: 31.3
B15: 50 | C15: 714.6 | F15: 785.6 | H15: 703.1 | I15: 714.6 | M15: 290 | N15: 0.898 | O15: 260.42 | P15: 50 | Q15: 36.3 | R15: 36.3 | T15: 39.7 | U15: 32.45 | V15: 36.3
P16: 60 | Q16: 41.9 | R16: 41.9 | T16: 45.4 | U16: 36.68 | V16: 41.9
B17: dyno wheel velocity and dyno force at the wheel | P17: 70 | Q17: 46.7 | R17: 46.7 | S17: =R17/1.114 -> 41.92100539 | T17: 50.3 | U17: 41.4 | V17: 46.7
B18: Shock | D18: LR | E18: Fork | P18: 80 | Q18: 52.1 | R18: 52.1 | S18: =R18/1.114 -> 46.76840215 | T18: 55.9 | U18: 45.92 | V18: 52.1
B19: u.whl | C19: F.wheel | D19: 2.52 | E19: u.whl | F19: F.wheel | G19: double | I19: u.whl | J19: F.shk | K19: F.fk | P19: 90 | Q19: 58.1 | R19: 58.1 | S19: 52.15439856 | T19: 62.1 | U19: 50.91 | V19: 58.1
A20: 1 | B20: =B6*D$19 -> 2.52 | C20: =C6/D$19 -> 15.91269841 | E20: =P6*H$22 -> 0.898 | F20: =Q6/H$22 -> 11.46993318 | G20: =F20*2 -> 22.93986637 | I20: =P6*H$22 -> 0.898 | J20: =intrp(I20,$B$20:$B$29,$C$20:$C$29) ->  | K20: =intrp(I20,$E$20:$E$34,$F$20:$F$34) -> 11.46993318 | L20: =J20/K20 ->  | P20: 100 | Q20: 63 | R20: 63 | S20: 56.5529623 | T20: 67.3 | U20: 55.37 | V20: 63
A21: 2 | B21: =B7*D$19 -> 5.04 | C21: 29.04761905 | E21: =P7*H$22 -> 1.796 | F21: =Q7/H$22 -> 12.69487751 | G21: =F21*2 -> 25.38975501 | H21: LR [1.11] | I21: =P7*H$22 -> 1.796 | J21: =intrp(I21,$B$20:$B$29,$C$20:$C$29) ->  | K21: =intrp(I21,$E$20:$E$34,$F$20:$F$34) -> 12.69487751 | L21: =J21/K21 ->  | P21: 110 | Q21: =T31 -> 68.63333333
A22: 3 | B22: 7.56 | C22: 38.57142857 | E22: 2.694 | F22: 14.14253898 | G22: 28.28507795 | H22: 0.898 | I22: 2.694 | J22: =intrp(I22,$B$20:$B$29,$C$20:$C$29) -> 16.81963341 | K22: =intrp(I22,$E$20:$E$34,$F$20:$F$34) -> 14.14253898 | L22: 1.189293764 | M22: F.shk = dyno numbers converted to fwhl | P22: 120 | Q22: =T32 -> 74.08333333
A23: 4 | B23: 10.08 | C23: 46.58730159 | E23: 3.592 | F23: 15.47884187 | G23: 30.95768374 | I23: 3.592 | J23: =intrp(I23,$B$20:$B$29,$C$20:$C$29) -> 21.50025195 | K23: =intrp(I23,$E$20:$E$34,$F$20:$F$34) -> 15.47884187 | L23: 1.389009083 | M23: F.fk = dyno numbers converted to fwhl | T23: linear
A24: 5 | B24: 12.6 | C24: 54.68253968 | E24: 4.49 | F24: 16.48106904 | G24: 32.96213808 | I24: 4.49 | J24: =intrp(I24,$B$20:$B$29,$C$20:$C$29) -> 26.1808705 | K24: =intrp(I24,$E$20:$E$34,$F$20:$F$34) -> 16.48106904 | L24: 1.588542007 | M24: now they are compareable not including air spr | T24: =_xlfn.SINGLE(INDEX(LINEST(R$28:R$30,($Q$28:$Q$30)^{1}),1)) -> 0.545
A25: 10 | B25: 25.2 | C25: 87.8968254 | E25: 8.98 | F25: 20.04454343 | G25: 40.08908686 | I25: 8.98 | J25: =intrp(I25,$B$20:$B$29,$C$20:$C$29) -> 43.0883094 | K25: =intrp(I25,$E$20:$E$34,$F$20:$F$34) -> 20.04454343 | L25: 2.14962788 | T25: =INDEX(LINEST(R$28:R$30,($Q$28:$Q$30)^{1}),1,2) -> 8.683333333
A26: 20 | B26: 50.4 | C26: =C12/D$19 -> 147.5793651 | E26: 17.96 | F26: 25.61247216 | G26: 51.22494432 | I26: 17.96 | J26: =intrp(I26,$B$20:$B$29,$C$20:$C$29) -> 68.81179138 | K26: =intrp(I26,$E$20:$E$34,$F$20:$F$34) -> 25.61247216 | L26: 2.686651681 | M26: SAVE !! | R26: STIFF
A27: 30 | B27: 75.6 | C27: =C13/D$19 -> 196.468254 | E27: 26.94 | F27: 30.17817372 | G27: 60.35634744 | I27: 26.94 | J27: =intrp(I27,$B$20:$B$29,$C$20:$C$29) -> 92.01776266 | K27: =intrp(I27,$E$20:$E$34,$F$20:$F$34) -> 30.17817372 | L27: 3.049149479 | M27: manual interpolate formula | Q27: ips | R27: linear | S27: ips | T27: linear
A28: 40 | B28: =B14*D$19 -> 100.8 | C28: =C14/D$19 -> 240.5952381 | E28: 35.92 | F28: 34.85523385 | G28: 69.71046771 | I28: 35.92 | J28: =intrp(I28,$B$20:$B$29,$C$20:$C$29) -> 113.2855883 | K28: =intrp(I28,$E$20:$E$34,$F$20:$F$34) -> 34.85523385 | L28: 3.250174387 | M28: =C25+(C26-C25)/(B26-B25)*(I28-B25) -> 113.2855883 | Q28: 80 | R28: =Q18 -> 52.1 | S28: 80 | T28: =(T$24*($S28)^1)+(T$25) -> 52.28333333
A29: 50 | B29: =B15*D$19 -> 126 | C29: =C15/D$19 -> 283.5714286 | E29: 44.9 | F29: 40.42316258 | G29: 80.84632517 | I29: 44.9 | J29: =intrp(I29,$B$20:$B$29,$C$20:$C$29) -> 134.553414 | K29: =intrp(I29,$E$20:$E$34,$F$20:$F$34) -> 40.42316258 | L29: 3.328621646 | Q29: 90 | R29: =Q19 -> 58.1 | S29: 90 | T29: =(T$24*($S29)^1)+(T$25) -> 57.73333333
A30: 60 | E30: 53.88 | F30: 46.65924276 | G30: 93.31848552 | I30: 53.88 | J30: =intrp(I30,$B$20:$B$29,$C$20:$C$29) -> 154.3306878 | K30: =intrp(I30,$E$20:$E$34,$F$20:$F$34) -> 46.65924276 | L30: 3.307612355 | M30: 1 / 1.4 = .71 | N30: IF forks 1.4 stiffer | Q30: 100 | R30: 63 | S30: 100 | T30: =(T$24*($S30)^1)+(T$25) -> 63.18333333
A31: 70 | E31: 62.86 | F31: 52.00445434 | G31: 104.0089087 | I31: 62.86 | J31: =intrp(I31,$B$20:$B$29,$C$20:$C$29) -> 171.7522046 | K31: =intrp(I31,$E$20:$E$34,$F$20:$F$34) -> 52.00445434 | L31: 3.302644105 | M31: =1/1.4 -> 0.7142857143 | S31: 110 | T31: =(T$24*($S31)^1)+(T$25) -> 68.63333333
A32: 80 | E32: 71.84 | F32: 58.01781737 | G32: 116.0356347 | I32: 71.84 | J32: =intrp(I32,$B$20:$B$29,$C$20:$C$29) -> 189.1737213 | K32: =intrp(I32,$E$20:$E$34,$F$20:$F$34) -> 58.01781737 | L32: 3.260614237 | S32: 120 | T32: =(T$24*($S32)^1)+(T$25) -> 74.08333333
A33: 90 | E33: =P19*H$22 -> 80.82 | F33: 64.69933185 | G33: 129.3986637 | I33: 80.82 | J33: =intrp(I33,$B$20:$B$29,$C$20:$C$29) -> 205.6088435 | K33: =intrp(I33,$E$20:$E$34,$F$20:$F$34) -> 64.69933185 | L33: 3.177912935 | M33: manual interpolate formula
A34: 100 | E34: =P20*H$22+0.01 -> 89.81 | F34: =Q20/H$22 -> 70.155902 | G34: 140.311804 | I34: 89.8 | J34: =intrp(I34,$B$20:$B$29,$C$20:$C$29) -> 221.3334593 | K34: =intrp(I34,$E$20:$E$34,$G$20:$G$34) -> 140.2996648 | L34: =J34/K34 -> 1.577576537 | M34: =C27+(C28-C27)/(B28-B27)*(I34-B27) -> 221.3334593
M37: = C27 + ( C28 - C27 ) / (B28-B27) * (H34-B27)
M38: 194.9 | N38: 239.8 | O38: 194.9 | P38: 100.8 | Q38: 100
E39: we used this with target sh/fk ratio | P39: 75.6 | Q39: 75.6
E40: aver | F40: 1 | H40: 0.9 | I40: factor | M40: $fwhl_LR_30 | N40: $fwhl_LR_40 | O40: $fwhl_LR_30 | P40: $uwhl_LR_40 | Q40: 100
E41: soft | F41: 0.897 | G41: =1/F41 -> 1.114827202 | H41: =G41*H$40 -> 1.003344482 | P41: $uwhl_LR_30 | Q41: $uwhl_LR_30
E42: stiff+1 | F42: 0.801 | G42: =1/F42 -> 1.248439451 | H42: 1.123595506 | M42: = $fwhl_LR_30 + ( $fwhl_LR_40 - $fwhl_LR_30 ) / ($uwhl_LR_40 - $uwhl_LR_30) * (100 - $uwhl_LR_30)
E43: stiff+2 | F43: 0.733 | G43: 1.36425648 | H43: 1.227830832
E44: stiff+3 | F44: 0.666 | G44: 1.501501502 | H44: 1.351351351
E45: stiff+4 | F45: 0.606 | G45: 1.650165017 | H45: 1.485148515 | M45: START
E46: stiff+5 | F46: 0.557 | G46: 1.795332136 | H46: 1.615798923 | M46: shaft | N46: 11.8 | O46: inch
E47: stiff+6 | F47: 0.526 | G47: 1.901140684 | H47: 1.711026616 | M47: velocity | N47: 100 | O47: ips
M48: shaft/vel = seconds | N48: =N46/N47 -> 0.118 | O48: sec
M50: REVERSE
H51: 0.9 | I51: factor | M51: shaft | N51: 11.8 | O51: inch
G52: 1.116 | H52: =G52*H$51 -> 1.0044 | M52: seconds | N52: 0.118 | O52: sec
G53: 1.251 | H53: =G53*H$51 -> 1.1259 | M53: shaft/sec = vel | N53: =N51/N52 -> 100 | O53: ips
G54: 1.406 | H54: 1.2654
G55: 1.584 | H55: 1.4256 | M55: CALC SHORTER SHAFT WITH SAME TIME
G56: 1.789 | H56: 1.6101 | M56: shaft | N56: 10.6 | O56: inch
G57: 2.024 | H57: 1.8216 | M57: seconds | N57: 0.118 | O57: sec
G58: 2.294 | H58: 2.0646 | M58: shaft/sec = vel | N58: =N56/N57 -> 89.83050847 | O58: ips

Sheet fk_3791_targ_03
B2: use this to verify calculations are correct
B4: (3791) 2010 CRF SC 250
B5: ReStackor copy yellow highlighted columns reb force is positive for ReStackor TARGETFORK
B6: target uses actual gas force and drag, defaults to targ if act empty
F7: TARGET | G7: FORK | I7: spr rate = dbl = .944
C8: $comp1_zeta_wogas | D8: chrtd = 8 | F8: bv aver b x 1.0 | G8: mv aver b x 1.0 | L8: chrtd = 8 | M8: .30-.65s x 1.0
C9: + $gas_load1 | D9: $comp1_zeta_wogas | E9: $comp1_zeta_wogas | F9: $comp1_zeta_bv | G9: $comp1_zeta_mv | H9: $gas_load1 | I9: $drag1 | J9: $ctg_drag | K9: $reb1_zeta | L9: $reb1_zeta_total
C10: co wgas | D10: co wogas +chrtd | E10: co wogas | F10: bv force | G10: mv force | H10: gas force | I10: c ctg drag | J10: c ctg drag | K10: ro wogas | L10: ro wogas +chrtd | M10: r-zeta
B11: ips | C11: [targ] | D11: [targ] | E11: [targ] | F11: [targ] | G11: [targ] | H11: [act] | I11: [act] | J11: [targ] | K11: [targ] | L11: [targ] | M11: [targ]
B12: 1 | C12: 13.9 | D12: 10.3 | E12: 2.3 | F12: 0.7 | G12: 0.1 | H12: 11.6 | I12: 1.5 | J12: 1.2 | K12: 0.9 | L12: 8.9 | M12: 2.91
B13: 2 | C13: 15 | D13: 11.4 | E13: 3.4 | F13: 1.6 | G13: 0.1 | H13: 11.6 | I13: 1.7 | J13: 1.2 | K13: 2.3 | L13: 10.3 | M13: 1.68
B14: 3 | C14: 16.2 | D14: 12.7 | E14: 4.7 | F14: 2.8 | G14: 0.1 | H14: 11.5 | I14: 1.8 | J14: 1.2 | K14: 3.9 | L14: 11.9 | M14: 1.29
B15: 4 | C15: 17.4 | D15: 13.9 | E15: 5.9 | F15: 3.9 | G15: 0.1 | H15: 11.5 | I15: 1.9 | J15: 1.2 | K15: 5.7 | L15: 13.7 | M15: 1.12
B16: 5 | C16: 18.3 | D16: 14.8 | E16: 6.8 | F16: 4.7 | G16: 0.1 | H16: 11.5 | I16: 2 | J16: 1.2 | K16: 7.8 | L16: 15.8 | M16: 1.03
B17: 10 | C17: 21.4 | D17: 18 | E17: 10 | F17: 6.9 | G17: 0.9 | H17: 11.4 | I17: 2.2 | J17: 1.2 | K17: 17.4 | L17: 25.4 | M17: 0.83
B18: 20 | C18: 26.4 | D18: 23 | E18: 15 | F18: 9.4 | G18: 3 | H18: 11.4 | I18: 2.5 | J18: 1.2 | K18: 37.1 | L18: 45.1 | M18: 0.73
B19: 30 | C19: 30.5 | D19: 27.1 | E19: 19.1 | F19: 11 | G19: 5.6 | H19: 11.4 | I19: 2.5 | J19: 1.2 | K19: 57.1 | L19: 65.1 | M19: 0.71
B20: 40 | C20: 34.6 | D20: 31.3 | E20: 23.3 | F20: 12.6 | G20: 8.3 | H20: 11.3 | I20: 2.4 | J20: 1.2 | K20: 77.1 | L20: 85.1 | M20: 0.69
B21: 50 | C21: 39.7 | D21: 36.3 | E21: 28.3 | F21: 14.1 | G21: 11.8 | H21: 11.5 | I21: 2.5 | J21: 1.2 | K21: 97.2 | L21: 105.2 | M21: 0.69
B22: 60 | C22: 45.4 | D22: 41.9 | E22: 33.9 | F22: 15.4 | G22: 15.7 | H22: 11.5 | I22: 2.8 | J22: 1.2 | K22: 117.3 | L22: 125.3 | M22: 0.68
B23: 70 | C23: 50.3 | D23: 46.7 | E23: 38.7 | F23: 16.6 | G23: 19.5 | H23: 11.6 | I23: 2.6 | J23: 1.2 | K23: 137.1 | L23: 145.1 | M23: 0.68
B24: 80 | C24: 55.9 | D24: 52.1 | E24: 44.1 | F24: 17.8 | G24: 23.9 | H24: 11.8 | I24: 2.4 | J24: 1.2
B25: 90 | C25: 62.1 | D25: 58.1 | E25: 50.1 | F25: 19.2 | G25: 28.3 | H25: 12 | I25: 2.6 | J25: 1.2
B26: 100 | C26: 67.3 | D26: 63 | E26: 55 | F26: 20.3 | G26: 32.3 | H26: 12.3 | I26: 2.4 | J26: 1.2

Sheet sh_2349_targ_03
B2: use this to verify calculations are correct
B4: (2349) 2020 SXF 450
B5: ReStackor copy yellow highlighted columns reb force is positive for ReStackor
C6: 2349 | F6: TARGET | G6: SHOCK | J6: spr = 4.55
C7: 109_74_38_g x 1.0 | J7: L 55-997 / 73_69_66 x 1.0
C8: $co_wogas_targ1 | D8: c+ca+dynm drag
C9: + ds_sgas | D9: $co_wogas_targ1 | E9: $c_force1_targ | F9: $ca_force1_targ | G9: ztnshc_gasforce_1 | H9: $fixed_drag1 | I9: $drag1 | J9: $ro_wogas1_targ
C10: co wgas | D10: co wogas | E10: c force | F10: ca force | G10: gas force | H10: drag force | I10: drag force | J10: ro wogas | K10: r-zeta
B11: ips | C11: [target] | D11: [target] | E11: [target] | F11: [target] | G11: [target] | H11: [target] | I11: [actual] | J11: [target] | K11: [targ]
B12: 1 | C12: 111.1 | D12: 40.1 | E12: 30.5 | F12: 0.6 | G12: 75 | H12: 4.7 | I12: 4.7 | J12: 31.3 | K12: 0.83
B13: 2 | C13: 144.2 | D13: 73.2 | E13: 59.7 | F13: 1.8 | G13: 75 | H13: 7.9 | I13: 7.9 | J13: 55 | K13: 0.73
B14: 3 | C14: 168.2 | D14: 97.2 | E14: 81.9 | F14: 3.2 | G14: 75 | H14: 8.6 | I14: 8.6 | J14: 79.8 | K14: 0.71
B15: 4 | C15: 188.4 | D15: 117.4 | E15: 99.5 | F15: 4.8 | G15: 75 | H15: 9.6 | I15: 9.6 | J15: 104.6 | K15: 0.69
B16: 5 | C16: 208.8 | D16: 137.8 | E16: 115.3 | F16: 6.7 | G16: 75 | H16: 12.6 | I16: 12.6 | J16: 129.4 | K16: 0.69
B17: 10 | C17: 292.5 | D17: 221.5 | E17: 184.6 | F17: 19.2 | G17: 75 | H17: 14.4 | I17: 14.4 | J17: 253.3 | K17: 0.67
B18: 20 | C18: 442.9 | D18: 371.9 | E18: 306.4 | F18: 45.9 | G18: 75 | H18: 16.5 | I18: 16.5 | J18: 501.2 | K18: 0.67
B19: 30 | C19: 566.1 | D19: 495.1 | E19: 411.9 | F19: 61.8 | G19: 75 | H19: 18 | I19: 18 | J19: 749.1 | K19: 0.66
B20: 40 | C20: 677.3 | D20: 606.3 | E20: 508.1 | F20: 76.2 | G20: 76 | H20: 17.9 | I20: 17.9 | J20: 997.1 | K20: 0.66
B21: 50 | C21: 785.6 | D21: 714.6 | E21: 602 | F21: 90.4 | G21: 77 | H21: 16.8 | I21: 16.8 | J21: 1245 | K21: 0.66

Sheet results_act_02
L1: vdb / excel / sh_fk_ratio_interpolate.xlsm
F2: 3694S | I2: WITH GAS
B3: SHOCK | F3: COPY NUMBERS | P3: FORK | Q3: CO WGAS | T3: COPY NUMBERS
C4: CO WGAS | D4: % | F4: HERE | R4: drag | S4: % | T4: HERE
B5: ips | C5: [actual] | D5: 1 | F5: [actual] | P5: ips | Q5: [actual] | R5: 0 | S5: 1 | T5: [actual]
B6: 1 | C6: =F6*D$5 -> 109 | F6: 109 | P6: 1 | Q6: =(T6*S$5)+R$5 -> 14 | R6: =(Q6+R$5) -> 14 | T6: 14
B7: 2 | C7: =F7*D$5 -> 148.2 | F7: 148.2 | P7: 2 | Q7: =(T7*S$5)+R$5 -> 14.99 | R7: =(Q7+R$5) -> 14.99 | T7: 14.99
B8: 3 | C8: 172.3 | F8: 172.3 | P8: 3 | Q8: 16.21 | R8: 16.21 | T8: 16.21
B9: 4 | C9: 190.9 | F9: 190.9 | P9: 4 | Q9: 17.5 | R9: 17.5 | T9: 17.5
B10: 5 | C10: 208.6 | F10: 208.6 | P10: 5 | Q10: 18.1 | R10: 18.1 | T10: 18.1
B11: 10 | C11: 287.1 | F11: 287.1 | P11: 10 | Q11: 20.2 | R11: 20.2 | T11: 20.2
B12: 20 | C12: 439 | F12: 439 | P12: 20 | Q12: 23.9 | R12: 23.9 | T12: 23.9
B13: 30 | C13: 562.2 | F13: 562.2 | P13: 30 | Q13: 27.69 | R13: 27.69 | T13: 27.69
B14: 40 | C14: 675.2 | F14: 675.2 | P14: 40 | Q14: 31.7 | R14: 31.7 | T14: 31.7
B15: 50 | C15: 785.7 | F15: 785.7 | P15: 50 | Q15: 35.9 | R15: 35.9 | T15: 35.9
P16: 60 | Q16: 40.21 | R16: 40.21 | T16: 40.21
B17: dyno wheel velocity and dyno force at the wheel | P17: 70 | Q17: 45 | R17: 45 | T17: 45
B18: Shock | D18: LR | E18: Fork | P18: 80 | Q18: 49.69 | R18: 49.69 | T18: 49.69
B19: u.whl | C19: F.wheel | D19: 2.52 | E19: u.whl | F19: F.wheel | G19: F.bush | H19: u.whl | I19: F.shk | J19: F.fk | P19: 90 | Q19: 54.89 | R19: 54.89 | T19: 54.89
A20: 1 | B20: =B6*D$19 -> 2.52 | C20: =C6/D$19 -> 43.25396825 | E20: =P6/G$22 -> 1 | F20: =2*Q6*G$22+G$20 -> 28 | G20: 0 | H20: 1 | I20: =intrp(H20,$B$20:$B$29,$C$20:$C$29) ->  | J20: =intrp(H20,$E$20:$E$34,$F$20:$F$34) -> 28 | K20: =I20/J20 ->  | P20: 100 | Q20: 59.7 | R20: 59.7 | T20: 59.7
A21: 2 | B21: =B7*D$19 -> 5.04 | C21: 58.80952381 | E21: =P7/G$22 -> 2 | F21: =2*Q7*G$22+G$20 -> 29.98 | G21: LR [1.11] | H21: 2 | I21: =intrp(H21,$B$20:$B$29,$C$20:$C$29) ->  | J21: =intrp(H21,$E$20:$E$34,$F$20:$F$34) -> 29.98 | K21: =I21/J21 -> 
A22: 3 | B22: 7.56 | C22: 68.37301587 | E22: =P8/G$22 -> 3 | F22: =2*Q8*G$22+G$20 -> 32.42 | G22: 1 | H22: 3 | I22: =intrp(H22,$B$20:$B$29,$C$20:$C$29) -> 46.21693122 | J22: =intrp(H22,$E$20:$E$34,$F$20:$F$34) -> 32.42 | K22: 1.425568514
A23: 4 | B23: 10.08 | C23: 75.75396825 | E23: 4 | F23: =2*Q9*G$22+G$20 -> 35 | H23: 4 | I23: =intrp(H23,$B$20:$B$29,$C$20:$C$29) -> 52.38977072 | J23: =intrp(H23,$E$20:$E$34,$F$20:$F$34) -> 35 | K23: 1.496850592 | P23: F.shk = dyno numbers converted to fwhl
A24: 5 | B24: 12.6 | C24: 82.77777778 | E24: 5 | F24: 36.2 | H24: 5 | I24: =intrp(H24,$B$20:$B$29,$C$20:$C$29) -> 58.56261023 | J24: =intrp(H24,$E$20:$E$34,$F$20:$F$34) -> 36.2 | K24: 1.617751664 | P24: F.fk = dyno numbers converted to fwhl
A25: 10 | B25: 25.2 | C25: 113.9285714 | E25: 10 | F25: 40.4 | H25: 10 | I25: =intrp(H25,$B$20:$B$29,$C$20:$C$29) -> 75.51965231 | J25: =intrp(H25,$E$20:$E$34,$F$20:$F$34) -> 40.4 | K25: 1.869298324 | P25: now they are compareable not including air spr
A26: 20 | B26: 50.4 | C26: =C12/D$19 -> 174.2063492 | E26: 20 | F26: 47.8 | H26: 20 | I26: =intrp(H26,$B$20:$B$29,$C$20:$C$29) -> 101.0726883 | J26: =intrp(H26,$E$20:$E$34,$F$20:$F$34) -> 47.8 | K26: 2.114491388 | M26: SAVE !!
A27: 30 | B27: 75.6 | C27: =C13/D$19 -> 223.0952381 | E27: 30 | F27: 55.38 | H27: 30 | I27: =intrp(H27,$B$20:$B$29,$C$20:$C$29) -> 125.4100529 | J27: =intrp(H27,$E$20:$E$34,$F$20:$F$34) -> 55.38 | K27: 2.264536889 | M27: manual interpolate formula | S27: =1/0.557 -> 1.795332136
A28: 40 | B28: 100.8 | C28: =C14/D$19 -> 267.9365079 | E28: 40 | F28: 63.4 | H28: 40 | I28: =intrp(H28,$B$20:$B$29,$C$20:$C$29) -> 149.329806 | J28: =intrp(H28,$E$20:$E$34,$F$20:$F$34) -> 63.4 | K28: 2.355359716 | M28: =C25+(C26-C25)/(B26-B25)*(H28-B25) -> 149.329806
A29: 50 | B29: 126 | C29: =C15/D$19 -> 311.7857143 | E29: 50 | F29: 71.8 | H29: 50 | I29: =intrp(H29,$B$20:$B$29,$C$20:$C$29) -> 173.2495591 | J29: =intrp(H29,$E$20:$E$34,$F$20:$F$34) -> 71.8 | K29: 2.412946505
A30: 60 | E30: 60 | F30: 80.42 | H30: 60 | I30: =intrp(H30,$B$20:$B$29,$C$20:$C$29) -> 192.8306878 | J30: =intrp(H30,$E$20:$E$34,$F$20:$F$34) -> 80.42 | K30: 2.397795173 | M30: 1 / 1.4 = .71 | N30: IF forks 1.4 stiffer | S30: 7.9 | T30: 7.9
A31: 70 | E31: 70 | F31: 90 | H31: 70 | I31: =intrp(H31,$B$20:$B$29,$C$20:$C$29) -> 212.2310406 | J31: =intrp(H31,$E$20:$E$34,$F$20:$F$34) -> 90 | K31: 2.358122673 | M31: =1/1.4 -> 0.7142857143 | S31: 12.6 | T31: 12.6
A32: 80 | E32: 80 | F32: 99.38 | H32: 80 | I32: =intrp(H32,$B$20:$B$29,$C$20:$C$29) -> 230.9246662 | J32: =intrp(H32,$E$20:$E$34,$F$20:$F$34) -> 99.38 | K32: 2.323653312 | S32: 1.4 | T32: 1.4
A33: 90 | E33: 90 | F33: 109.78 | H33: 90 | I33: =intrp(H33,$B$20:$B$29,$C$20:$C$29) -> 248.7188209 | J33: =intrp(H33,$E$20:$E$34,$F$20:$F$34) -> 109.78 | K33: 2.265611412 | M33: manual interpolate formula | S33: =SUM(S30:S32) -> 21.9 | T33: 10.4
A34: 100 | E34: 100.01 | F34: =2*Q20*G$22+G$20 -> 119.4 | H34: 100 | I34: =intrp(H34,$B$20:$B$29,$C$20:$C$29) -> 266.5129756 | J34: =intrp(H34,$E$20:$E$34,$F$20:$F$34) -> 119.3903896 | K34: 2.232281647 | M34: =C27+(C28-C27)/(B28-B27)*(H34-B27) -> 266.5129756 | T34: =SUM(T30:T33) -> 32.3
M36: = C27 + ( C28 - C27 ) / (B28-B27) * (H34-B27)
M37: 194.9 | N37: 239.8 | O37: 194.9 | P37: 100.8 | Q37: 100
E38: we used this with target sh/fk ratio | P38: 75.6 | Q38: 75.6
E39: aver | F39: 1 | H39: 0.9 | I39: factor | M39: $fwhl_LR_30 | N39: $fwhl_LR_40 | O39: $fwhl_LR_30 | P39: $uwhl_LR_40 | Q39: 100
E40: soft | F40: 0.897 | G40: =1/F40 -> 1.114827202 | H40: =G40*H$39 -> 1.003344482 | P40: $uwhl_LR_30 | Q40: $uwhl_LR_30
E41: stiff+1 | F41: 0.801 | G41: =1/F41 -> 1.248439451 | H41: 1.123595506
E42: stiff+2 | F42: 0.733 | G42: 1.36425648 | H42: 1.227830832 | M42: = $fwhl_LR_30 + ( $fwhl_LR_40 - $fwhl_LR_30 ) / ($uwhl_LR_40 - $uwhl_LR_30) * (100 - $uwhl_LR_30)
E43: stiff+3 | F43: 0.666 | G43: 1.501501502 | H43: 1.351351351
E44: stiff+4 | F44: 0.606 | G44: 1.650165017 | H44: 1.485148515
E45: stiff+5 | F45: 0.557 | G45: 1.795332136 | H45: 1.615798923
E46: stiff+6 | F46: 0.526 | G46: 1.901140684 | H46: 1.711026616
L48: 101.3 | M48: 112.79 | N48: 123.55 | O48: 129.55 | P48: 46.33 | Q48: 77.61
L49: 39.55 | M49: 41.92 | N49: 44.12 | O49: 46.43
H50: 0.9 | I50: factor | L50: 51.5 | M50: 60.12 | N50: 68.44 | O50: 77.61
G51: 1.116 | H51: =G51*H$50 -> 1.0044 | L51: 9.31 | M51: 9.65 | N51: 9.81 | O51: 10.19
G52: 1.251 | H52: =G52*H$50 -> 1.1259 | L52: =L48-L49-L50-L51 -> 0.94 | M52: =M48-M49-M50-M51 -> 1.1 | N52: 1.18 | O52: -4.68
G53: 1.406 | H53: 1.2654
G54: 1.584 | H54: 1.4256
G55: 1.789 | H55: 1.6101
G56: 2.024 | H56: 1.8216
G57: 2.294 | H57: 2.0646

Sheet fk_3791_act_02
B4: (3791) 2010 CRF SC 250
B5: ReStackor copy yellow highlighted columns reb force is positive for ReStackor
G6: ACTUAL | H6: FORK | I6: spr rate = dbl = .944
E7: chrtd = 2.5 | K7: chrtd = 2.5
C8: co wgas | D8: co wogas | E8: co wogas | F8: bv force | G8: mv force | H8: gas force | I8: drag force | J8: ro wogas | K8: ro wogas
B9: ips | C9: [act] | D9: [bv+mv+drag] | E9: [bv+mv+drag+chtd] | F9: [act] | G9: [act] | H9: [act] | I9: [act] | J9: [act] | K9: [+chtd]
B10: 1 | C10: 14 | D10: 2.36 | E10: 4.86 | F10: 0.44 | G10: 0.41 | H10: 11.64 | I10: 1.51 | J10: 2.4 | K10: 4.9
B11: 2 | C11: 14.99 | D11: 3.39 | E11: 5.89 | F11: 1.29 | G11: 0.41 | H11: 11.6 | I11: 1.69 | J11: 3.6 | K11: 6.1
B12: 3 | C12: 16.21 | D12: 4.68 | E12: 7.18 | F12: 2.4 | G12: 0.51 | H12: 11.53 | I12: 1.77 | J12: 5.1 | K12: 7.6
B13: 4 | C13: 17.5 | D13: 5.97 | E13: 8.47 | F13: 3.52 | G13: 0.51 | H13: 11.53 | I13: 1.94 | J13: 6.7 | K13: 9.2
B14: 5 | C14: 18.1 | D14: 6.59 | E14: 9.09 | F14: 4.07 | G14: 0.51 | H14: 11.51 | I14: 2.01 | J14: 9 | K14: 11.5
B15: 10 | C15: 20.2 | D15: 8.83 | E15: 11.33 | F15: 5.71 | G15: 0.92 | H15: 11.37 | I15: 2.2 | J15: 18.9 | K15: 21.4
B16: 20 | C16: 23.9 | D16: 12.51 | E16: 15.01 | F16: 7.48 | G16: 2.5 | H16: 11.39 | I16: 2.53 | J16: 38.4 | K16: 40.9
B17: 30 | C17: 27.69 | D17: 16.3 | E17: 18.8 | F17: 8.98 | G17: 4.85 | H17: 11.39 | I17: 2.47 | J17: 59 | K17: 61.5
B18: 40 | C18: 31.7 | D18: 20.36 | E18: 22.86 | F18: 10.37 | G18: 7.61 | H18: 11.34 | I18: 2.38 | J18: 81.2 | K18: 83.7
B19: 50 | C19: 35.9 | D19: 24.45 | E19: 26.95 | F19: 11.47 | G19: 10.53 | H19: 11.45 | I19: 2.45 | J19: 103.8 | K19: 106.3
B20: 60 | C20: 40.21 | D20: 28.68 | E20: 31.18 | F20: 12.52 | G20: 13.39 | H20: 11.53 | I20: 2.77 | J20: 126.7 | K20: 129.2
B21: 70 | C21: 45 | D21: 33.4 | E21: 35.9 | F21: 13.66 | G21: 17.17 | H21: 11.6 | I21: 2.57 | J21: 149 | K21: 151.5
B22: 80 | C22: 49.69 | D22: 37.92 | E22: 40.42 | F22: 14.68 | G22: 20.85 | H22: 11.77 | I22: 2.39
B23: 90 | C23: 54.89 | D23: 42.91 | E23: 45.41 | F23: 15.65 | G23: 24.63 | H23: 11.98 | I23: 2.63
B24: 100 | C24: 59.7 | D24: 47.37 | E24: 49.87 | F24: 16.45 | G24: 28.51 | H24: 12.33 | I24: 2.41

Sheet sh_3694_act_02
B4: (3694) 2021 XCF 350
B5: ReStackor copy yellow highlighted columns reb force is positive for ReStackor
C6: 3694 | E6: $new_cowogas1 | G6: ACTUAL | H6: SHOCK | I6: 4.55 spr
C7: ds_sc1_wgas | D7: ds_sc1_wogas | E7: c+ca+dynm drag | F7: $c_load1 | G7: $ca_load1 | H7: $gas_load1 | I7: $drag1 | J7: ds_sr1_wogas
C8: co wgas | D8: co wogas | E8: co wogas | F8: c force | G8: ca force | H8: gas force | I8: drag force | J8: ro wogas | K8: r-zeta
B9: ips | C9: [act] | D9: [act] | E9: [act] | F9: [act] | G9: [act] | H9: [act] | I9: [act] | J9: [act] | K9: [act]
B10: 1 | C10: 109 | D10: 39 | E10: 38 | F10: 28.6 | G10: 0.9 | H10: 75.7 | I10: 3.8 | J10: 27.5 | K10: 0.73
B11: 2 | C11: 148.2 | D11: 78.2 | E11: 77.2 | F11: 66.2 | G11: 1.6 | H11: 75.3 | I11: 5.1 | J11: 55.2 | K11: 0.73
B12: 3 | C12: 172.3 | D12: 102.3 | E12: 101.3 | F12: 88.7 | G12: 2.6 | H12: 74.8 | I12: 6.2 | J12: 80.6 | K12: 0.71
B13: 4 | C13: 190.9 | D13: 120.9 | E13: 119.9 | F13: 105.4 | G13: 3.8 | H13: 74.5 | I13: 7.1 | J13: 104 | K13: 0.69
B14: 5 | C14: 208.6 | D14: 138.6 | E14: 137.6 | F14: 120.5 | G14: 5.1 | H14: 74.5 | I14: 8.5 | J14: 126.7 | K14: 0.67
B15: 10 | C15: 287.1 | D15: 217.1 | E15: 216.1 | F15: 186.8 | G15: 15.1 | H15: 74.6 | I15: 10.6 | J15: 265.3 | K15: 0.7
B16: 20 | C16: 439 | D16: 369 | E16: 368 | F16: 308.1 | G16: 44 | H16: 74.5 | I16: 12.4 | J16: 538.7 | K16: 0.72
B17: 30 | C17: 562.2 | D17: 492.2 | E17: 491.2 | F17: 412.2 | G17: 63.1 | H17: 74.9 | I17: 12 | J17: 794.4 | K17: 0.7
B18: 40 | C18: 675.2 | D18: 605.2 | E18: 604.2 | F18: 508.1 | G18: 78.8 | H18: 75.4 | I18: 12.9 | J18: 1059.9 | K18: 0.7
B19: 50 | C19: 785.7 | D19: 715.7 | E19: 714.7 | F19: 601.9 | G19: 93.8 | H19: 76.6 | I19: 13.4 | J19: 1337.8 | K19: 0.71
B20: 60 | C20: 0 | D20: 0 | E20: 0 | F20: 0 | G20: 0 | H20: 0 | I20: 0 | J20: 0 | K20: 0
B21: 70 | C21: 0 | D21: 0 | E21: 0 | F21: 0 | G21: 0 | H21: 0 | I21: 0 | J21: 0 | K21: 0

Sheet results_targ_01
P2: 3791f | Q2: target | T2: 3791f
B3: 3249s | C3: target | F3: 3249s | Q3: co wogas
C4: co wogas | D4: % | F4: COPY | R4: drag | S4: % | T4: COPY
B5: ips | C5: [target] | D5: 1 | F5: [target] | P5: ips | Q5: [targ] | R5: 16 | S5: 1 | T5: [targ]
B6: 1 | C6: 40.1 | F6: 40.1 | P6: 1 | Q6: =(T6*S$5)+R$5 -> 18.3 | R6: =(Q6+R$5) -> 34.3 | T6: 2.3
B7: 2 | C7: 73.2 | F7: 73.2 | P7: 2 | Q7: =(T7*S$5)+R$5 -> 19.4 | R7: =(Q7+R$5) -> 35.4 | T7: 3.4
B8: 3 | C8: 97.2 | F8: 97.2 | P8: 3 | Q8: 20.7 | R8: 36.7 | T8: 4.7
B9: 4 | C9: 117.4 | F9: 117.4 | P9: 4 | Q9: 21.9 | R9: 37.9 | T9: 5.9
B10: 5 | C10: 137.8 | F10: 137.8 | P10: 5 | Q10: 22.8 | R10: 38.8 | T10: 6.8
B11: 10 | C11: 221.5 | F11: 221.5 | P11: 10 | Q11: 26 | R11: 42 | T11: 10
B12: 20 | C12: 371.9 | F12: 371.9 | P12: 20 | Q12: 31 | R12: 47 | T12: 15
B13: 30 | C13: 495.1 | F13: 495.1 | P13: 30 | Q13: 35.1 | R13: 51.1 | T13: 19.1
B14: 40 | C14: 606.3 | F14: 606.3 | P14: 40 | Q14: 39.3 | R14: 55.3 | T14: 23.3
B15: 50 | C15: 714.6 | F15: 714.6 | P15: 50 | Q15: 44.3 | R15: 60.3 | T15: 28.3
P16: 60 | Q16: 49.9 | R16: 65.9 | T16: 33.9
B17: dyno wheel velocity and dyno force at the wheel | P17: 70 | Q17: 54.7 | R17: 70.7 | T17: 38.7
B18: Shock | D18: LR | E18: Fork | P18: 80 | Q18: 60.1 | R18: 76.1 | T18: 44.1
B19: u.whl | C19: F.wheel | D19: 2.52 | E19: u.whl | F19: F.wheel | G19: F.bush | H19: u.whl | I19: F.shk | J19: F.fk | P19: 90 | Q19: 66.1 | R19: 82.1 | T19: 50.1
A20: 1 | B20: =B6*D$19 -> 2.52 | C20: =C6/D$19 -> 15.91269841 | E20: =P6/G$22 -> 1 | F20: =2*Q6*G$22+G$20 -> 36.6 | G20: 0 | H20: 1 | I20: =intrp(H20,$B$20:$B$29,$C$20:$C$29) ->  | J20: =intrp(H20,$E$20:$E$34,$F$20:$F$34) -> 36.6 | K20: =I20/J20 ->  | P20: 100 | Q20: 71 | R20: 87 | T20: 55
A21: 2 | B21: 5.04 | C21: 29.04761905 | E21: =P7/G$22 -> 2 | F21: =2*Q7*G$22+G$20 -> 38.8 | G21: LR [1.11] | H21: 2 | I21: =intrp(H21,$B$20:$B$29,$C$20:$C$29) ->  | J21: =intrp(H21,$E$20:$E$34,$F$20:$F$34) -> 38.8 | K21: =I21/J21 -> 
A22: 3 | B22: 7.56 | C22: 38.57142857 | E22: 3 | F22: 41.4 | G22: 1 | H22: 3 | I22: =intrp(H22,$B$20:$B$29,$C$20:$C$29) -> 18.41458806 | J22: =intrp(H22,$E$20:$E$34,$F$20:$F$34) -> 41.4 | K22: 0.444796813
A23: 4 | B23: 10.08 | C23: 46.58730159 | E23: 4 | F23: 43.8 | H23: 4 | I23: =intrp(H23,$B$20:$B$29,$C$20:$C$29) -> 23.62685815 | J23: =intrp(H23,$E$20:$E$34,$F$20:$F$34) -> 43.8 | K23: 0.5394259852 | P23: F.shk = dyno numbers converted to fwhl
A24: 5 | B24: 12.6 | C24: 54.68253968 | E24: 5 | F24: 45.6 | H24: 5 | I24: =intrp(H24,$B$20:$B$29,$C$20:$C$29) -> 28.83912824 | J24: =intrp(H24,$E$20:$E$34,$F$20:$F$34) -> 45.6 | K24: 0.6324370229 | P24: F.fk = dyno numbers converted to fwhl
A25: 10 | B25: 25.2 | C25: 87.8968254 | E25: 10 | F25: 52 | H25: 10 | I25: =intrp(H25,$B$20:$B$29,$C$20:$C$29) -> 46.33282943 | J25: =intrp(H25,$E$20:$E$34,$F$20:$F$34) -> 52 | K25: 0.8910159505 | P25: now they are compareable not including air spr
A26: 20 | B26: 50.4 | C26: 147.5793651 | E26: 20 | F26: 62 | H26: 20 | I26: =intrp(H26,$B$20:$B$29,$C$20:$C$29) -> 74.1893424 | J26: =intrp(H26,$E$20:$E$34,$F$20:$F$34) -> 62 | K26: 1.196602297
A27: 30 | B27: 75.6 | C27: 196.468254 | E27: 30 | F27: 70.2 | H27: 30 | I27: =intrp(H27,$B$20:$B$29,$C$20:$C$29) -> 99.26492819 | J27: =intrp(H27,$E$20:$E$34,$F$20:$F$34) -> 70.2 | K27: 1.414030316 | M27: SAVE !!
A28: 40 | B28: 100.8 | C28: 240.5952381 | E28: 40 | F28: 78.6 | H28: 40 | I28: =intrp(H28,$B$20:$B$29,$C$20:$C$29) -> 122.9484757 | J28: =intrp(H28,$E$20:$E$34,$F$20:$F$34) -> 78.6 | K28: 1.564229971 | M28: manual interpolate formula
A29: 50 | B29: 126 | C29: =C15/D$19 -> 283.5714286 | E29: 50 | F29: 88.6 | H29: 50 | I29: =intrp(H29,$B$20:$B$29,$C$20:$C$29) -> 146.6320232 | J29: =intrp(H29,$E$20:$E$34,$F$20:$F$34) -> 88.6 | K29: 1.654988975 | M29: =C25+(C26-C25)/(B26-B25)*(H29-B25) -> 146.6320232
A30: 60 | E30: 60 | F30: 99.8 | H30: 60 | I30: =intrp(H30,$B$20:$B$29,$C$20:$C$29) -> 166.2037037 | J30: =intrp(H30,$E$20:$E$34,$F$20:$F$34) -> 99.8 | K30: 1.665367773
A31: 70 | E31: 70 | F31: 109.4 | H31: 70 | I31: =intrp(H31,$B$20:$B$29,$C$20:$C$29) -> 185.6040564 | J31: =intrp(H31,$E$20:$E$34,$F$20:$F$34) -> 109.4 | K31: 1.696563587 | M31: 1 / 1.4 = .71 | N31: IF forks 1.4 stiffer
A32: 80 | E32: 80 | F32: 120.2 | H32: 80 | I32: =intrp(H32,$B$20:$B$29,$C$20:$C$29) -> 204.1729655 | J32: =intrp(H32,$E$20:$E$34,$F$20:$F$34) -> 120.2 | K32: 1.698610362 | M32: =1/1.4 -> 0.7142857143
A33: 90 | E33: 90 | F33: 132.2 | H33: 90 | I33: =intrp(H33,$B$20:$B$29,$C$20:$C$29) -> 221.6836735 | J33: =intrp(H33,$E$20:$E$34,$F$20:$F$34) -> 132.2 | K33: 1.67688104
A34: 100 | E34: 100.01 | F34: 142 | H34: 100 | I34: =intrp(H34,$B$20:$B$29,$C$20:$C$29) -> 239.1943815 | J34: =intrp(H34,$E$20:$E$34,$F$20:$F$34) -> 141.9902098 | K34: 1.684583619

Sheet fk_3791_targ_01
B4: (3791) 2010 CRF SC 250
B5: Reb numbers are positive for ReStackor
B6: stdrag = 8 | E6: spr rate = dbl = .944
C7: bv aver b x 1.0 | J7: .30-.65s
C8: mv aver b x 1.0 | J8: r-zeta factor 1.0
C9: co wogas uses target drag if actual is empty
C10: co wogas | D10: co wogas | E10: bv force | F10: mv force | G10: gas force | H10: ctg drag | I10: ctg drag | J10: ro wogas | K10: ro wogas
C11: +chrtd | H11: comp | I11: comp | K11: +chrtd | L11: r-zeta
B12: ips | C12: [targ] | D12: [targ] | E12: [targ] | F12: [targ] | G12: [act] | H12: [act] | I12: [targ] | J12: [targ] | K12: [targ] | L12: [targ]
B13: 1 | C13: 10.3 | D13: 2.3 | E13: 0.7 | F13: 0.1 | G13: 11.6 | H13: 1.5 | I13: 1.2 | J13: 0.9 | K13: 8.9 | L13: 2.91
B14: 2 | C14: 11.4 | D14: 3.4 | E14: 1.6 | F14: 0.1 | G14: 11.6 | H14: 1.7 | I14: 1.2 | J14: 2.3 | K14: 10.3 | L14: 1.68
B15: 3 | C15: 12.7 | D15: 4.7 | E15: 2.8 | F15: 0.1 | G15: 11.5 | H15: 1.8 | I15: 1.2 | J15: 3.9 | K15: 11.9 | L15: 1.29
B16: 4 | C16: 13.9 | D16: 5.9 | E16: 3.9 | F16: 0.1 | G16: 11.5 | H16: 1.9 | I16: 1.2 | J16: 5.7 | K16: 13.7 | L16: 1.12
B17: 5 | C17: 14.8 | D17: 6.8 | E17: 4.7 | F17: 0.1 | G17: 11.5 | H17: 2 | I17: 1.2 | J17: 7.8 | K17: 15.8 | L17: 1.03
B18: 10 | C18: 18 | D18: 10 | E18: 6.9 | F18: 0.9 | G18: 11.4 | H18: 2.2 | I18: 1.2 | J18: 17.4 | K18: 25.4 | L18: 0.83
B19: 20 | C19: 23 | D19: 15 | E19: 9.4 | F19: 3 | G19: 11.4 | H19: 2.5 | I19: 1.2 | J19: 37.1 | K19: 45.1 | L19: 0.73
B20: 30 | C20: 27.1 | D20: 19.1 | E20: 11 | F20: 5.6 | G20: 11.4 | H20: 2.5 | I20: 1.2 | J20: 57.1 | K20: 65.1 | L20: 0.71
B21: 40 | C21: 31.3 | D21: 23.3 | E21: 12.6 | F21: 8.3 | G21: 11.3 | H21: 2.4 | I21: 1.2 | J21: 77.1 | K21: 85.1 | L21: 0.69
B22: 50 | C22: 36.3 | D22: 28.3 | E22: 14.1 | F22: 11.8 | G22: 11.5 | H22: 2.5 | I22: 1.2 | J22: 97.2 | K22: 105.2 | L22: 0.69
B23: 60 | C23: 41.9 | D23: 33.9 | E23: 15.4 | F23: 15.7 | G23: 11.5 | H23: 2.8 | I23: 1.2 | J23: 117.3 | K23: 125.3 | L23: 0.68
B24: 70 | C24: 46.7 | D24: 38.7 | E24: 16.6 | F24: 19.5 | G24: 11.6 | H24: 2.6 | I24: 1.2 | J24: 137.1 | K24: 145.1 | L24: 0.68
B25: 80 | C25: 52.1 | D25: 44.1 | E25: 17.8 | F25: 23.9 | G25: 11.8 | H25: 2.4 | I25: 1.2
B26: 90 | C26: 58.1 | D26: 50.1 | E26: 19.2 | F26: 28.3 | G26: 12 | H26: 2.6 | I26: 1.2
B27: 100 | C27: 63 | D27: 55 | E27: 20.3 | F27: 32.3 | G27: 12.3 | H27: 2.4 | I27: 1.2

Sheet sh_2349_targ_01
B4: reb force is positive for ReStackor
C5: 2349 | E5: TARGET NUMBERS | I5: spr = 4.55
C6: 109_74_38_g x 1.0 | I6: D46 51-997 / 68_60_66 x 1.0
C7: actual drag
C8: co wogas | D8: c force | E8: ca force | F8: gas force | G8: drag force | H8: drag force | I8: ro wogas | J8: r-zeta
B9: ips | C9: [target] | D9: [target] | E9: [target] | F9: [target] | G9: [target] | H9: [actual] | I9: [target] | J9: [targ]
B10: 1 | C10: 40.1 | D10: 30.5 | E10: 0.6 | F10: 75 | G10: 4.7 | H10: 4.7 | I10: 29.1 | J10: 0.77
B11: 2 | C11: 73.2 | D11: 59.7 | E11: 1.8 | F11: 75 | G11: 7.9 | H11: 7.9 | I11: 51 | J11: 0.68
B12: 3 | C12: 97.2 | D12: 81.9 | E12: 3.2 | F12: 75 | G12: 8.6 | H12: 8.6 | I12: 71.2 | J12: 0.63
B13: 4 | C13: 117.4 | D13: 99.5 | E13: 4.8 | F13: 75 | G13: 9.6 | H13: 9.6 | I13: 91.6 | J13: 0.61
B14: 5 | C14: 137.8 | D14: 115.3 | E14: 6.7 | F14: 75 | G14: 12.6 | H14: 12.6 | I14: 112.3 | J14: 0.6
B15: 10 | C15: 221.5 | D15: 184.6 | E15: 19.2 | F15: 75 | G15: 14.4 | H15: 14.4 | I15: 219.4 | J15: 0.58
B16: 20 | C16: 371.9 | D16: 306.4 | E16: 45.9 | F16: 75 | G16: 16.5 | H16: 16.5 | I16: 453 | J16: 0.6
B17: 30 | C17: 495.1 | D17: 411.9 | E17: 61.8 | F17: 75 | G17: 18 | H17: 18 | I17: 712.3 | J17: 0.63
B18: 40 | C18: 606.3 | D18: 508.1 | E18: 76.2 | F18: 76 | G18: 17.9 | H18: 17.9 | I18: 997.1 | J18: 0.66
B19: 50 | C19: 714.6 | D19: 602 | E19: 90.4 | F19: 77 | G19: 16.8 | H19: 16.8 | I19: 1307.5 | J19: 0.69
